bitfinex-derivatives/quotes_BTCF0:USTF0_20250528
["timestamp","ask_amount","ask_price","bid_price","bid_amount"]
[1748391430561,1.86849801,108790.0,108780.0,0.04573886]
[1748391430754,2.01756377,108790.0,108780.0,0.04573982]
[1748391430949,2.01756377,108790.0,108780.0,0.01878973]
[1748391431150,2.01756377,108790.0,108780.0,0.02489598]
[1748391431556,2.01756377,108790.0,108780.0,8e-08]
[1748391431861,1.97467756,108790.0,108780.0,0.00448217]
[1748391432047,1.83953546,108790.0,108780.0,0.01879055]
[1748391432246,1.83953546,108790.0,108780.0,0.00460209]
[1748391432458,1.83953546,108790.0,108780.0,0.01879053]
[1748391432756,1.83953546,108790.0,108780.0,0.00460209]
[1748391432961,1.83953546,108790.0,108780.0,0.01879055]
[1748391433165,1.83953546,108790.0,108780.0,0.00460209]
[1748391433563,1.83953546,108790.0,108780.0,0.01879056]
[1748391434261,1.88239476,108790.0,108780.0,0.00460209]
[1748391434466,1.88239476,108790.0,108780.0,0.01878646]
[1748391434766,1.88239476,108790.0,108780.0,0.00460209]
[1748391434963,1.88239476,108790.0,108780.0,0.01878193]
[1748391435161,1.88239031,108790.0,108780.0,0.00460209]
[1748391435356,1.88239031,108790.0,108780.0,0.01878193]
[1748391435863,1.88239031,108790.0,108780.0,0.01878011]
[1748391436264,1.33659031,108790.0,108780.0,0.0187801]
[1748391436478,1.27944855,108790.0,108780.0,0.01877961]
[1748391436761,1.18752455,108790.0,108780.0,0.01877961]
[1748391436955,1.73248455,108790.0,108780.0,0.01877964]
[1748391437154,1.73248455,108790.0,108780.0,0.01877963]
[1748391438261,1.73248455,108790.0,108780.0,0.01878025]
[1748391439159,1.73248455,108790.0,108780.0,0.00460209]
[1748391439367,1.73248455,108790.0,108780.0,0.01878444]
[1748391439555,1.73248455,108790.0,108780.0,0.00460209]
[1748391439759,1.73248455,108790.0,108780.0,0.01888886]
[1748391442269,1.73248455,108790.0,108780.0,0.05168886]
[1748391442460,1.73248455,108790.0,108780.0,0.05169217]
[1748391442661,1.73248455,108790.0,108780.0,0.05169232]
[1748391442856,1.18752455,108790.0,108780.0,0.08349232]
[1748391443064,1.73141866,108790.0,108780.0,0.08349232]
[1748391443268,1.73141866,108790.0,108780.0,0.11519232]
[1748391444066,1.73141866,108790.0,108780.0,0.11519223]
[1748391444275,1.78856042,108790.0,108780.0,0.11519223]
[1748391444754,1.78856042,108790.0,108780.0,0.11519241]
[1748391444960,1.78856042,108790.0,108780.0,0.10090209]
[1748391445154,1.24464042,108790.0,108780.0,0.11519241]
[1748391445462,1.78812042,108790.0,108780.0,0.1151925]
[1748391445658,1.78804042,108790.0,108780.0,0.1251925]
[1748391445869,1.78800042,108790.0,108780.0,0.1251925]
[1748391446167,1.73085866,108790.0,108780.0,0.15226259]
[1748391446361,1.73085866,108790.0,108780.0,0.15226251]
[1748391446667,1.56438452,108790.0,108780.0,0.33603231]
[1748391446963,1.02114452,108790.0,108780.0,0.15226251]
[1748391447163,1.02115913,108790.0,108780.0,0.15226251]
[1748391447354,1.02115913,108790.0,108780.0,0.15226254]
[1748391447968,1.02115913,108790.0,108780.0,0.1522627]
[1748391448170,1.02115913,108790.0,108780.0,0.13797218]
[1748391448365,1.02115913,108790.0,108780.0,0.1522627]
[1748391448567,1.02115913,108790.0,108780.0,0.15226301]
[1748391448764,1.02115913,108790.0,108780.0,0.15226339]
[1748391449568,1.02115913,108790.0,108780.0,0.33603309]
[1748391449771,1.15641327,108790.0,108780.0,0.15226403]
[1748391450162,1.15641327,108790.0,108780.0,0.26696311]
[1748391451166,1.15641327,108790.0,108780.0,0.18243114]
[1748391451478,1.15641327,108790.0,108780.0,0.19672388]
[1748391452369,1.15641327,108790.0,108780.0,0.18243186]
[1748391452574,1.15641327,108790.0,108780.0,0.19672445]
[1748391453176,1.15641327,108790.0,108780.0,0.19672467]
[1748391453871,1.15634382,108790.0,108780.0,0.33190936]
[1748391454072,1.15634382,108790.0,108780.0,0.31761655]
[1748391454273,1.15634382,108790.0,108780.0,0.33190988]
[1748391454673,1.15634382,108790.0,108780.0,0.35769897]
[1748391454875,1.15634382,108790.0,108780.0,0.52717544]
[1748391455176,1.15634382,108790.0,108780.0,0.54146937]
[1748391455679,1.15635338,108790.0,108780.0,0.54146937]
[1748391456063,1.15635338,108790.0,108780.0,0.54146986]
[1748391456461,1.15635338,108790.0,108780.0,0.54147058]
[1748391457573,1.59047338,108790.0,108780.0,0.30998625]
[1748391457880,1.59047338,108790.0,108780.0,0.19121655]
[1748391458070,1.59047338,108790.0,108780.0,0.35900124]
[1748391459070,1.59047338,108790.0,108780.0,0.22381677]
[1748391459470,1.59047338,108790.0,108780.0,0.22381688]
[1748391459674,1.15635338,108790.0,108780.0,0.22381688]
[1748391459980,1.15635893,108790.0,108780.0,0.20952095]
[1748391460276,1.15635893,108790.0,108780.0,0.22381732]
[1748391460871,1.15635893,108790.0,108780.0,0.40758702]
[1748391461280,1.15635893,108790.0,108780.0,0.4075871]
[1748391461782,1.15635893,108790.0,108780.0,0.40746718]
[1748391462389,1.15635893,108790.0,108780.0,0.40746726]
[1748391463277,1.15635893,108790.0,108780.0,0.40746725]
[1748391463881,1.15635893,108790.0,108780.0,0.40746799]
[1748391464078,1.15635893,108790.0,108780.0,0.39317065]
[1748391464282,1.15635893,108790.0,108780.0,0.42176533]
[1748391464781,1.15635893,108790.0,108780.0,0.5311814]
[1748391464984,1.15635893,108790.0,108780.0,0.39599671]
[1748391465283,1.15635893,108790.0,108780.0,0.43658815]
[1748391465878,1.15635893,108790.0,108780.0,0.4365893]
[1748391466278,1.15635893,108790.0,108780.0,0.35151854]
[1748391466484,1.18715893,108790.0,108780.0,0.35151864]
[1748391467187,1.18715893,108790.0,108780.0,0.33721922]
[1748391467384,1.18715893,108790.0,108780.0,0.35151864]
[1748391467584,1.18715893,108790.0,108780.0,0.35151874]
[1748391467775,1.18715893,108790.0,108780.0,0.35151875]
[1748391468373,1.18717348,108790.0,108780.0,0.33721922]
[1748391468594,1.18717348,108790.0,108780.0,0.35151909]
[1748391469977,1.18717348,108790.0,108780.0,0.33721922]
[1748391470177,1.18717348,108790.0,108780.0,0.3515193]
[1748391470572,1.18717348,108790.0,108780.0,0.33721922]
[1748391470780,1.18717348,108790.0,108780.0,0.35151972]
[1748391471178,1.18717348,108790.0,108780.0,0.33721922]
[1748391471383,1.18717348,108790.0,108780.0,0.35151972]
[1748391471589,1.18717348,108790.0,108780.0,0.35152022]
[1748391472784,1.18717918,108790.0,108780.0,0.35152074]
[1748391472984,1.18717918,108790.0,108780.0,0.46239537]
[1748391473291,1.18717918,108790.0,108780.0,0.46239538]
[1748391473490,1.18717918,108790.0,108780.0,0.46239604]
[1748391473787,1.18717918,108790.0,108780.0,0.46239609]
[1748391475075,1.18717918,108790.0,108780.0,0.5068994]
[1748391475283,1.18717918,108790.0,108780.0,0.43661526]
[1748391475692,1.18717918,108790.0,108780.0,0.73158348]
[1748391475693,0.96653183,108790.0,108780.0,0.73158348]
[1748391475892,0.3791,108790.0,108780.0,1.18772184]
[1748391476083,0.0049,108790.0,108780.0,1.74757823]
[1748391476393,0.43534312,108800.0,108790.0,0.1837528]
[1748391476394,0.07684312,108800.0,108790.0,0.1837528]
[1748391476592,0.07684312,108800.0,108790.0,1.55186144]
[1748391476776,0.07684312,108800.0,108790.0,1.58321351]
[1748391476777,0.26057902,108800.0,108790.0,1.58321351]
[1748391476982,0.26057912,108800.0,108790.0,1.58321351]
[1748391477183,0.07684312,108800.0,108790.0,1.58321351]
[1748391477392,0.26057912,108800.0,108790.0,1.39546828]
[1748391477594,0.26357912,108800.0,108790.0,1.39646828]
[1748391477782,0.26357912,108800.0,108790.0,1.3964589]
[1748391478184,0.26357912,108800.0,108790.0,1.3864589]
[1748391478488,0.26357912,108800.0,108790.0,1.4121494]
[1748391478690,0.26357912,108800.0,108790.0,1.39787701]
[1748391479093,0.26657912,108800.0,108790.0,1.39887701]
[1748391479292,0.26657912,108800.0,108790.0,1.4131494]
[1748391479492,0.26657912,108800.0,108790.0,1.39887701]
[1748391480093,0.26657912,108800.0,108790.0,1.63387701]
[1748391480599,0.26657912,108800.0,108790.0,1.64814827]
[1748391481501,0.26657912,108800.0,108790.0,1.68866742]
[1748391482709,0.26657912,108800.0,108790.0,1.68866697]
[1748391482910,0.26657912,108800.0,108790.0,1.67439672]
[1748391483109,0.26657912,108800.0,108790.0,1.68866306]
[1748391483906,0.26657912,108800.0,108790.0,1.58884775]
[1748391484106,0.26657912,108800.0,108790.0,1.62884775]
[1748391484502,0.26657912,108800.0,108790.0,1.6288462]
[1748391484806,0.04906358,108800.0,108790.0,1.82442189]
[1748391485016,0.23279948,108800.0,108790.0,1.83868651]
[1748391485509,0.23279948,108800.0,108790.0,1.83867994]
[1748391485703,0.23279948,108800.0,108790.0,1.80264232]
[1748391485909,0.22979948,108800.0,108790.0,1.85578476]
[1748391486111,0.22779948,108800.0,108790.0,1.85778476]
[1748391486295,0.22879948,108800.0,108790.0,1.85978476]
[1748391486799,0.22879948,108800.0,108790.0,1.85977888]
[1748391487210,0.22879948,108800.0,108790.0,1.85977889]
[1748391487609,0.03479494,108800.0,108790.0,2.57187958]
[1748391487904,0.03479494,108800.0,108790.0,2.44983873]
[1748391488111,0.03479494,108800.0,108790.0,2.31476894]
[1748391488307,0.03479494,108800.0,108790.0,2.3147637]
[1748391488702,0.03479494,108800.0,108790.0,2.30051676]
[1748391488910,0.03479494,108800.0,108790.0,1.44325386]
[1748391489105,0.21853084,108800.0,108790.0,1.30615998]
[1748391489305,0.25173084,108800.0,108790.0,1.827807]
[1748391490114,0.25173084,108800.0,108790.0,1.26229721]
[1748391490311,0.25173084,108800.0,108790.0,1.827687]
[1748391490506,0.25173084,108800.0,108790.0,0.58149721]
[1748391490716,0.28233084,108800.0,108790.0,1.29544092]
[1748391491018,0.28233084,108800.0,108790.0,1.60308035]
[1748391491710,0.28233084,108800.0,108790.0,1.60308171]
[1748391492018,0.28233084,108800.0,108790.0,0.93285192]
[1748391492218,0.28233084,108800.0,108790.0,1.60116171]
[1748391492808,0.28233084,108800.0,108790.0,1.58692865]
[1748391493013,0.28233084,108800.0,108790.0,1.60116169]
[1748391493316,0.28233084,108800.0,108790.0,1.03569191]
[1748391493520,0.28233084,108800.0,108790.0,1.21719786]
[1748391493711,0.31483084,108800.0,108790.0,1.19024165]
[1748391493918,0.31483084,108800.0,108790.0,1.21719793]
[1748391494117,0.31483084,108800.0,108790.0,1.20296493]
[1748391494310,0.31483084,108800.0,108790.0,1.21719894]
[1748391494510,0.31483084,108800.0,108790.0,1.21707894]
[1748391494713,0.31483084,108800.0,108790.0,1.21719894]
[1748391495216,0.31483084,108800.0,108790.0,1.06517287]
[1748391495408,0.31483084,108800.0,108790.0,1.20024266]
[1748391495609,0.31483084,108800.0,108790.0,1.22720289]
[1748391496010,0.31483084,108800.0,108790.0,1.22720535]
[1748391496210,0.31483084,108800.0,108790.0,1.16804512]
[1748391496614,0.31483084,108800.0,108790.0,1.15380865]
[1748391496822,0.31483084,108800.0,108790.0,1.16804566]
[1748391497018,0.31483084,108800.0,108790.0,0.73776566]
[1748391497218,0.31483084,108800.0,108790.0,1.19456917]
[1748391498612,0.31483084,108800.0,108790.0,1.18033216]
[1748391499023,0.28233084,108800.0,108790.0,1.18033216]
[1748391499220,0.28233084,108800.0,108790.0,1.18646865]
[1748391499614,0.28233084,108800.0,108790.0,1.21495215]
[1748391499924,0.06799494,108800.0,108790.0,1.52451859]
[1748391500119,0.06799494,108800.0,108790.0,2.02086849]
[1748391500425,0.25173084,108800.0,108790.0,2.07314175]
[1748391500917,0.03479494,108800.0,108790.0,1.55212272]
[1748391501120,0.03479494,108800.0,108790.0,2.64925957]
[1748391501320,0.03479494,108800.0,108790.0,2.81006342]
[1748391501626,0.00013752,108810.0,108800.0,0.1837359]
[1748391501826,0.00013752,108810.0,108800.0,1.51870505]
[1748391502024,0.00013752,108810.0,108800.0,1.84561305]
[1748391502328,0.00013752,108810.0,108800.0,1.83136949]
[1748391502514,0.00013752,108810.0,108800.0,1.84560813]
[1748391502920,0.00113752,108810.0,108800.0,1.84860529]
[1748391503109,0.00113752,108810.0,108800.0,1.83436088]
[1748391503314,0.00113752,108810.0,108800.0,1.84860544]
[1748391504512,0.00213752,108810.0,108800.0,1.85163858]
[1748391504719,0.00213752,108810.0,108800.0,1.93337046]
[1748391505531,0.00213752,108810.0,108800.0,1.8272179]
[1748391505827,0.00213752,108810.0,108800.0,2.01878631]
[1748391506220,0.00213752,108810.0,108800.0,2.01878439]
[1748391506423,0.00213752,108810.0,108800.0,2.01878524]
[1748391507529,0.00213752,108810.0,108800.0,1.8650359]
[1748391507832,0.00213752,108810.0,108800.0,1.85317478]
[1748391508125,0.00213752,108810.0,108800.0,1.85317216]
[1748391508516,0.00213752,108810.0,108800.0,1.93082262]
[1748391508720,0.00213752,108810.0,108800.0,1.94508604]
[1748391509525,0.00213752,108810.0,108800.0,2.37396604]
[1748391509719,0.00213752,108810.0,108800.0,2.362266]
[1748391509920,0.00213752,108810.0,108800.0,2.34800951]
[1748391510122,0.00213752,108810.0,108800.0,2.36226596]
[1748391510828,0.00213752,108810.0,108800.0,2.34800951]
[1748391511029,0.00213752,108810.0,108800.0,2.36226517]
[1748391511430,0.00213752,108810.0,108800.0,2.31025809]
[1748391511629,0.00213752,108810.0,108800.0,2.31025743]
[1748391512126,0.00213752,108810.0,108800.0,2.22852783]
[1748391512938,0.00213752,108810.0,108800.0,2.18373456]
[1748391513133,0.00213752,108810.0,108800.0,2.22855906]
[1748391513531,0.00213752,108810.0,108800.0,2.22855907]
[1748391513726,0.03533752,108810.0,108800.0,2.22855907]
[1748391513931,0.03533752,108810.0,108800.0,2.58935881]
[1748391514530,0.03533752,108810.0,108800.0,2.49745081]
[1748391515242,0.03533752,108810.0,108800.0,2.5019329]
[1748391515744,0.03533752,108810.0,108800.0,2.50193246]
[1748391516037,0.03533752,108810.0,108800.0,2.50193247]
[1748391517040,0.03533752,108810.0,108800.0,2.50193241]
[1748391517333,0.03533752,108810.0,108800.0,2.50193498]
[1748391517535,0.03533752,108810.0,108800.0,2.4344189]
[1748391518540,0.03533752,108810.0,108800.0,2.42016442]
[1748391518835,0.03533752,108810.0,108800.0,2.52632647]
[1748391519032,2e-08,108810.0,108800.0,2.92180115]
[1748391519231,2e-08,108810.0,108800.0,2.82837166]
[1748391519436,2e-08,108810.0,108800.0,4.42290287]
[1748391519633,2e-08,108810.0,108800.0,4.50201068]
[1748391519839,2e-08,108810.0,108800.0,4.51626294]
[1748391520040,2e-08,108810.0,108800.0,4.51626146]
[1748391520237,2e-08,108810.0,108800.0,4.17290129]
[1748391521135,2e-08,108810.0,108800.0,4.17290053]
[1748391521443,2e-08,108810.0,108800.0,4.17285441]
[1748391521626,2e-08,108810.0,108800.0,4.15860443]
[1748391521826,2e-08,108810.0,108800.0,4.17285452]
[1748391522031,2e-08,108810.0,108800.0,4.17285458]
[1748391522232,2e-08,108810.0,108800.0,4.07832248]
[1748391522433,2e-08,108810.0,108800.0,4.07832254]
[1748391522637,2e-08,108810.0,108800.0,4.07832367]
[1748391522832,2e-08,108810.0,108800.0,4.17285572]
[1748391523237,2e-08,108810.0,108800.0,4.26621575]
[1748391523834,2e-08,108810.0,108800.0,4.26621821]
[1748391524344,2e-08,108810.0,108800.0,4.78561821]
[1748391525047,2e-08,108810.0,108800.0,4.77136456]
[1748391525246,2e-08,108810.0,108800.0,4.69226168]
[1748391525446,2e-08,108810.0,108800.0,4.59772963]
[1748391525739,2e-08,108810.0,108800.0,4.59776299]
[1748391527145,2e-08,108810.0,108800.0,4.5835008]
[1748391527347,2e-08,108810.0,108800.0,4.69230197]
[1748391527551,2e-08,108810.0,108800.0,4.50856607]
[1748391527749,0.03120002,108810.0,108800.0,4.69230197]
[1748391528247,0.03120002,108810.0,108800.0,4.7856621]
[1748391528446,0.03120002,108810.0,108800.0,4.69230197]
[1748391528839,0.03120002,108810.0,108800.0,4.67803285]
[1748391529139,0.03120002,108810.0,108800.0,4.78566184]
[1748391529643,0.03120002,108810.0,108800.0,4.69230171]
[1748391529850,0.03120002,108810.0,108800.0,4.42000209]
[1748391530145,0.03120002,108810.0,108800.0,4.55507188]
[1748391530340,0.03120002,108810.0,108800.0,4.20274167]
[1748391530740,0.03120002,108810.0,108800.0,4.20275037]
[1748391531650,0.03120002,108810.0,108800.0,4.20294583]
[1748391533849,0.03120002,108810.0,108800.0,4.18866762]
[1748391534050,0.03120002,108810.0,108800.0,4.20294623]
[1748391534549,0.03120002,108810.0,108800.0,4.20295241]
[1748391535662,0.03120002,108810.0,108800.0,4.1886738]
[1748391535864,0.03120002,108810.0,108800.0,4.29631334]
[1748391536249,0.03120002,108810.0,108800.0,4.29631372]
[1748391536555,0.03120002,108810.0,108800.0,4.02617414]
[1748391536756,0.03120002,108810.0,108800.0,4.29631372]
[1748391537059,0.06230002,108810.0,108800.0,4.29631446]
[1748391537443,0.03120002,108810.0,108800.0,4.29631446]
[1748391538657,0.03120002,108810.0,108800.0,4.29631547]
[1748391538958,0.03120002,108810.0,108800.0,4.28203393]
[1748391539164,0.03120002,108810.0,108800.0,4.29631586]
[1748391539363,0.06310002,108810.0,108800.0,4.29631586]
[1748391539661,0.06310002,108810.0,108800.0,4.29654312]
[1748391540665,0.06310002,108810.0,108800.0,4.29654341]
[1748391541051,0.06310002,108810.0,108800.0,4.29654393]
[1748391541452,0.06310002,108810.0,108800.0,4.29708612]
[1748391542558,0.06310002,108810.0,108800.0,4.20517812]
[1748391542767,0.06310002,108810.0,108800.0,4.11159073]
[1748391542955,0.06310002,108810.0,108800.0,4.04652467]
[1748391543353,0.06310002,108810.0,108800.0,3.34966687]
[1748391543554,0.06310002,108810.0,108800.0,3.58613666]
[1748391543850,0.06310002,108810.0,108800.0,3.94747666]
[1748391544065,0.09460002,108810.0,108800.0,3.88199032]
[1748391544372,0.09460002,108810.0,108800.0,3.97817822]
[1748391544557,0.09460002,108810.0,108800.0,4.00997822]
[1748391544959,0.09460002,108810.0,108800.0,4.00997944]
[1748391545159,0.09460002,108810.0,108800.0,4.0099794]
[1748391545757,0.09460002,108810.0,108800.0,3.44818961]
[1748391546056,0.14926268,108810.0,108800.0,2.31617225]
[1748391546261,0.14926268,108810.0,108800.0,1.88242632]
[1748391546466,0.33298178,108810.0,108800.0,1.91239798]
[1748391546765,0.33298178,108810.0,108800.0,2.41075629]
[1748391546967,0.33298178,108810.0,108800.0,2.47828918]
[1748391547162,0.33298178,108810.0,108800.0,2.41075677]
[1748391547358,0.33298178,108810.0,108800.0,1.81508163]
[1748391547569,0.94378178,108810.0,108800.0,1.13012965]
[1748391547769,0.94378178,108810.0,108800.0,1.22374581]
[1748391547770,0.91298178,108810.0,108800.0,1.22374581]
[1748391547972,0.91298178,108810.0,108800.0,1.22362581]
[1748391548163,0.91298178,108810.0,108800.0,1.20945593]
[1748391548363,0.91298178,108810.0,108800.0,1.16400506]
[1748391548659,0.58298178,108810.0,108800.0,1.16400506]
[1748391549172,0.33298178,108810.0,108800.0,1.16400506]
[1748391549681,0.33298178,108810.0,108800.0,1.13858565]
[1748391549967,0.33298178,108810.0,108800.0,1.08451972]
[1748391550173,0.33298178,108810.0,108800.0,1.13858432]
[1748391550566,0.33298178,108810.0,108800.0,1.13857034]
[1748391551872,0.33298178,108810.0,108800.0,1.49936849]
[1748391552474,0.33298178,108810.0,108800.0,1.36509321]
[1748391553671,0.33298178,108810.0,108800.0,1.23001774]
[1748391553870,0.33298178,108810.0,108800.0,1.36505488]
[1748391554372,0.33298178,108810.0,108800.0,1.22998509]
[1748391554567,0.33298178,108810.0,108800.0,1.36505488]
[1748391554875,0.33298178,108810.0,108800.0,1.22998509]
[1748391555068,0.33298178,108810.0,108800.0,1.00341706]
[1748391555375,0.33298178,108810.0,108800.0,1.00425488]
[1748391555576,0.68213311,108810.0,108800.0,0.86918509]
[1748391555782,1.47113845,108810.0,108800.0,0.30571158]
[1748391555960,0.1837359,108800.0,108790.0,0.10531169]
[1748391556167,0.1837528,108790.0,108780.0,0.0156762]
[1748391556360,1.08142259,108790.0,108780.0,0.11869559]
[1748391556567,1.46928559,108790.0,108780.0,0.02992]
[1748391556872,0.1837866,108770.0,108760.0,0.77797075]
[1748391557071,0.1837866,108770.0,108760.0,0.99797075]
[1748391557658,0.1837866,108770.0,108760.0,0.99809075]
[1748391557864,0.63384501,108780.0,108770.0,0.1837866]
[1748391557865,0.59065712,108780.0,108770.0,0.1837866]
[1748391558069,0.59065712,108780.0,108770.0,0.49265639]
[1748391558268,0.59065712,108780.0,108770.0,0.38454389]
[1748391558469,0.59065712,108780.0,108770.0,0.3575866]
[1748391558662,0.59065712,108780.0,108770.0,0.49265639]
[1748391559076,0.59065712,108780.0,108770.0,0.3577066]
[1748391559277,0.59065712,108780.0,108770.0,0.49277639]
[1748391559766,0.61025712,108780.0,108770.0,0.49277639]
[1748391559964,0.69045712,108780.0,108770.0,0.49477639]
[1748391561578,0.69045712,108780.0,108770.0,0.3597066]
[1748391561875,0.69045712,108780.0,108770.0,0.49477639]
[1748391562176,0.00013752,108780.0,108770.0,1.19557639]
[1748391562378,0.00013752,108780.0,108770.0,1.65931368]
[1748391562379,0.18390722,108780.0,108770.0,1.65931368]
[1748391562676,0.00013752,108780.0,108770.0,1.65931368]
[1748391563470,0.18390722,108780.0,108770.0,1.65931368]
[1748391563779,0.18390722,108780.0,108770.0,1.80931368]
[1748391564574,0.00013752,108780.0,108770.0,1.94438347]
[1748391564768,0.00013752,108780.0,108770.0,1.91742618]
[1748391564972,0.00137984,108790.0,108780.0,0.18825179]
[1748391565167,0.3267976,108810.0,108800.0,0.1837359]
[1748391565379,0.6092637,108810.0,108800.0,0.44880569]
[1748391565682,0.6092637,108810.0,108800.0,0.51240569]
[1748391566487,0.6122637,108810.0,108800.0,0.3783359]
[1748391566672,0.6122637,108810.0,108800.0,0.51340569]
[1748391566980,0.6122637,108810.0,108800.0,0.87520569]
[1748391566981,0.6152637,108810.0,108800.0,0.87520569]
[1748391567797,0.62439422,108810.0,108800.0,0.51440569]
[1748391567979,0.6152637,108810.0,108800.0,0.54670569]
[1748391568483,0.9760637,108810.0,108800.0,0.54670569]
[1748391569480,0.6152637,108810.0,108800.0,0.54670569]
[1748391569681,0.9760637,108810.0,108800.0,0.54670569]
[1748391569872,0.6152637,108810.0,108800.0,0.54670569]
[1748391570283,0.9760637,108810.0,108800.0,0.54670569]
[1748391570984,0.9564637,108810.0,108800.0,0.54670569]
[1748391571876,0.006,108810.0,108800.0,1.58639548]
[1748391572073,0.006,108810.0,108800.0,1.61328773]
[1748391572274,0.006,108810.0,108800.0,1.45132569]
[1748391572473,0.006,108810.0,108800.0,1.49503787]
[1748391573080,0.004,108810.0,108800.0,1.49403787]
[1748391573484,0.003,108810.0,108800.0,1.49403787]
[1748391573683,0.001,108810.0,108800.0,1.49303787]
[1748391574591,0.001,108810.0,108800.0,1.49305474]
[1748391575305,0.184719,108810.0,108800.0,1.35798495]
[1748391575490,0.185719,108810.0,108800.0,1.27017474]
[1748391575783,0.185719,108810.0,108800.0,1.63109474]
[1748391575975,0.185719,108810.0,108800.0,1.4922959]
[1748391576181,0.185719,108810.0,108800.0,0.93634611]
[1748391576478,0.215319,108810.0,108800.0,0.88744]
[1748391576781,0.215319,108810.0,108800.0,0.93622611]
[1748391578786,0.70118879,108810.0,108800.0,0.41147141]
[1748391578990,1.15309679,108810.0,108800.0,0.29429975]
[1748391579175,1.15329679,108810.0,108800.0,0.26746955]
[1748391579381,1.40329679,108810.0,108800.0,0.26734955]
[1748391579782,1.40329679,108810.0,108800.0,0.11478794]
[1748391579988,1.40329679,108810.0,108800.0,0.10466794]
[1748391580182,1.268227,108810.0,108800.0,0.10478794]
[1748391580484,1.40329679,108810.0,108800.0,0.10478794]
[1748391581291,1.15329679,108810.0,108800.0,0.10478794]
[1748391581982,1.15329679,108810.0,108800.0,0.03482048]
[1748391582185,1.018227,108810.0,108800.0,0.03482048]
[1748391582397,1.15329679,108810.0,108800.0,0.03482048]
[1748391582578,1.018227,108810.0,108800.0,0.21855638]
[1748391582888,1.15329679,108810.0,108800.0,0.21855638]
[1748391583186,1.15329679,108810.0,108800.0,0.06532048]
[1748391583787,1.59237679,108810.0,108800.0,0.06532048]
[1748391584887,1.59237679,108810.0,108800.0,0.03482048]
[1748391585795,1.59237679,108810.0,108800.0,0.10478794]
[1748391588089,1.15329679,108810.0,108800.0,0.10478794]
[1748391588292,1.59121679,108810.0,108800.0,0.14698794]
[1748391590499,1.59121679,108810.0,108800.0,0.19081056]
[1748391591395,1.59121679,108810.0,108800.0,0.1208431]
[1748391592293,1.456147,108810.0,108800.0,0.1208431]
[1748391592496,1.59121679,108810.0,108800.0,0.14713846]
[1748391593598,1.59121679,108810.0,108800.0,0.19098096]
[1748391594505,1.59121679,108810.0,108800.0,0.22218096]
[1748391595604,1.59121679,108810.0,108800.0,0.22218307]
[1748391596507,1.59121679,108810.0,108800.0,0.17833846]
[1748391597106,1.59121679,108810.0,108800.0,0.22218222]
[1748391597908,1.15329679,108810.0,108800.0,0.17833846]
[1748391598097,1.58949679,108810.0,108800.0,0.17833846]
[1748391598497,1.58949679,108810.0,108800.0,0.22217979]
[1748391598806,1.58949679,108810.0,108800.0,0.17833846]
[1748391599507,1.362519,108810.0,108800.0,0.17833846]
[1748391599703,0.926119,108810.0,108800.0,0.36207396]
[1748391599909,1.361999,108810.0,108800.0,0.36207396]
[1748391600110,1.361999,108810.0,108800.0,0.43286441]
[1748391601296,1.361999,108810.0,108800.0,0.36274643]
[1748391601504,1.49706879,108810.0,108800.0,0.17901093]
[1748391601999,1.361999,108810.0,108800.0,0.36274593]
[1748391602601,1.49706879,108810.0,108800.0,0.17901093]
[1748391603618,1.361999,108810.0,108800.0,0.36274593]
[1748391604115,1.361999,108810.0,108800.0,0.17901093]
[1748391605418,1.49706879,108810.0,108800.0,0.17901093]
[1748391607311,1.361999,108810.0,108800.0,0.21943]
[1748391607511,1.49706879,108810.0,108800.0,0.21943]
[1748391608415,1.53987593,108810.0,108800.0,0.21943]
[1748391609310,1.53987593,108810.0,108800.0,0.21931]
[1748391609712,1.40480614,108810.0,108800.0,0.21931]
[1748391610021,1.53987593,108810.0,108800.0,0.21931]
[1748391610824,1.53992193,108810.0,108800.0,0.21931]
[1748391611619,1.54144193,108810.0,108800.0,0.21931]
[1748391611816,1.54144193,108810.0,108800.0,0.21943]
[1748391613017,1.54544193,108810.0,108800.0,0.22043]
[1748391613524,1.40937214,108810.0,108800.0,0.22043]
[1748391613725,1.54244193,108810.0,108800.0,0.22043]
[1748391613919,1.54544193,108810.0,108800.0,0.22143]
[1748391614628,1.41037214,108810.0,108800.0,0.22143]
[1748391614926,1.50258879,108810.0,108800.0,0.22143]
[1748391615121,1.54544428,108810.0,108800.0,0.22143]
[1748391615518,1.90624428,108810.0,108800.0,0.22143]
[1748391615920,1.77117449,108810.0,108800.0,0.22143]
[1748391616120,1.90624428,108810.0,108800.0,0.22143]
[1748391619326,1.90624496,108810.0,108800.0,0.22143]
[1748391620625,2.09845651,108810.0,108800.0,0.20745831]
[1748391620830,2.10075651,108810.0,108800.0,0.20733831]
[1748391621226,2.10075651,108810.0,108800.0,0.20745831]
[1748391621531,2.10075651,108810.0,108800.0,0.13717068]
[1748391621927,1.92283055,108810.0,108800.0,0.13717068]
[1748391622429,2.05790034,108810.0,108800.0,0.20745831]
[1748391623232,2.05790034,108810.0,108800.0,0.13717068]
[1748391623829,2.05790034,108810.0,108790.0,0.11084422]
[1748391623830,0.1837346,108800.0,108790.0,0.27134898]
[1748391624130,1.16467638,108800.0,108790.0,0.31134898]
[1748391624828,1.16667638,108800.0,108790.0,0.31134898]
[1748391626030,1.60335638,108800.0,108790.0,0.31134898]
[1748391626333,1.60535638,108800.0,108790.0,0.31234898]
[1748391627132,1.60535638,108800.0,108790.0,0.40554898]
[1748391627439,1.6053433,108800.0,108790.0,0.40554898]
[1748391629735,1.47027351,108800.0,108790.0,0.40554898]
[1748391630532,1.47027351,108800.0,108790.0,0.33526135]
[1748391630736,1.6053433,108800.0,108790.0,0.3791815]
[1748391631228,1.6053433,108800.0,108790.0,0.38826359]
[1748391631426,1.60534226,108800.0,108790.0,0.38826359]
[1748391633539,1.57384226,108800.0,108790.0,0.43217943]
[1748391635138,1.53098439,108800.0,108790.0,0.36641793]
[1748391635345,1.57384226,108800.0,108790.0,0.36641793]
[1748391635534,1.57384226,108800.0,108790.0,0.32250209]
[1748391635736,1.53098439,108800.0,108790.0,0.36641779]
[1748391636140,1.57384226,108800.0,108790.0,0.36641779]
[1748391636441,1.72270965,108800.0,108790.0,9e-08]
[1748391636633,1.81095141,108800.0,108790.0,9e-08]
[1748391636836,1.81095141,108800.0,108780.0,0.134286]
[1748391636837,0.1837515,108790.0,108780.0,0.134286]
[1748391637038,1.12737351,108790.0,108780.0,0.184286]
[1748391638136,0.99230372,108790.0,108780.0,0.184286]
[1748391638327,0.1837853,108770.0,108760.0,0.0540646]
[1748391638526,0.5845853,108770.0,108760.0,0.48982138]
[1748391638731,0.5845853,108770.0,108760.0,0.30382]
[1748391639034,0.5845853,108770.0,108760.0,0.30394]
[1748391639236,0.5845853,108770.0,108760.0,0.43900979]
[1748391639639,0.6181853,108770.0,108760.0,0.53550979]
[1748391639937,0.5781853,108770.0,108760.0,0.71931199]
[1748391640127,0.6281853,108770.0,108760.0,0.40044]
[1748391640329,0.6281853,108770.0,108760.0,0.53550979]
[1748391640542,0.6291853,108770.0,108760.0,0.53750979]